[Event "Czech Open-E Teams 2022"]
[Site "Pardubice"]
[Date "2022.07.14"]
[Round "1.1"]
[White "Mrazik, Tomas"]
[Black "Vykouk, Jan"]
[Result "0-1"]
[ECO "B31"]
[WhiteElo "2055"]
[BlackElo "2476"]
[Annotator "ChessBase"]
[PlyCount "74"]
[EventDate "2022.07.14"]
[EventType "team-tourn"]
[EventCountry "CZE"]
[SourceTitle "playchess.com"]
[Source "ChessBase"]
[SourceQuality "1"]
[TimeControl "5400+30"]

1. e4 {[%emt 0:00:05]} c5 {[%emt 0:00:06]} 2. Nf3 {[%emt 0:00:19]} Nc6 {[%emt 0:00:07]} 3. Bb5 {[%emt 0:00:33]} g6 {[%emt 0:00:15]} 4. O-O {[%emt 0:00:33]} Bg7 {[%emt 0:00:05]} 5. Re1 {[%emt 0:00:36]} e5 {[%emt 0:01:21]} 6. b4 {[%emt 0:01:43]} cxb4 {[%emt 0:00:52]} 7. a3 {[%emt 0:00:54]} Nge7 {[%emt 0:02:05]} 8. axb4 {[%emt 0:03:10]} O-O {[%emt 0:00:36]} 9. Bxc6 {[%emt 0:08:37]} dxc6 {[%emt 0:01:23]} 10. Bb2 {[%emt 0:02:21]} Qd6 {[%emt 0:02:38]} 11. Qe2 {[%emt 0:22:07]} Bg4 {[%emt 0:01:26]} 12. Bc3 {[%emt 0:01:47]} a6 {[%emt 0:04:09]} 13. h3 {[%emt 0:03:44]} Bxf3 {[%emt 0:01:54]} 14. Qxf3 {[%emt 0:00:40]} f5 {[%emt 0:00:21]} 15. d3 {[%emt 0:01:48]} c5 {[%emt 0:12:54]} 16. bxc5 {[%emt 0:06:18]} Qxc5 {[%emt 0:00:07]} 17. Qe3 {[%emt 0:02:22]} Qxe3 {[%emt 0:00:40]} 18. Rxe3 {[%emt 0:01:03]} Rfc8 {[%emt 0:00:16]} 19. Ra2 {[%emt 0:07:33]} Nc6 {[%emt 0:01:27]} 20. exf5 {[%emt 0:03:13]} gxf5 {[%emt 0:00:08]} 21. Nd2 {[%emt 0:00:19]} b5 {[%emt 0:04:16]} 22. Nf3 {[%emt 0:03:15]} Re8 {[%emt 0:00:07]} 23. Re1 {[%emt 0:01:14]} b4 {[%emt 0:03:19]} 24. Bb2 {[%emt 0:01:51]} b3 {[%emt 0:02:40]} 25. cxb3 {[%emt 0:02:30]} Nb4 {[%emt 0:00:06]} 26. Ra5 {[%emt 0:04:55]} Nxd3 {[%emt 0:00:07]} 27. Re2 {[%emt 0:00:54]} Nxb2 {[%emt 0:00:07]} 28. Rxb2 {[%emt 0:00:58]} e4 {[%emt 0:00:06]} 29. Rba2 {[%emt 0:00:03]} exf3 {[%emt 0:00:10]} 30. gxf3 {[%emt 0:04:43]} Re6 {[%emt 0:01:05]} 31. Rxf5 {[%emt 0:00:59]} Rb8 {[%emt 0:00:07]} 32. Rfa5 {[%emt 0:02:47]} Rbb6 {[%emt 0:00:08]} 33. Kf1 {[%emt 0:02:19]} Bc3 {[%emt 0:00:33]} 34. Rg5+ {[%emt 0:03:14]} Kf7 {[%emt 0:00:11]} 35. Rc5 {[%emt 0:01:14]} Re1+ {[%emt 0:00:08]} 36. Kg2 {[%emt 0:00:21]} Rg6+ {[%emt 0:00:06]} 37. Kh2 {[%emt 0:00:06]} Be5+ {[%emt 0:00:07]} 0-1

[Event "Czech Open-E Teams 2022"]
[Site "Pardubice"]
[Date "2022.07.14"]
[Round "1.2"]
[White "Simacek, Pavel"]
[Black "Zezula, Jakub"]
[Result "1-0"]
[ECO "E38"]
[WhiteElo "2458"]
[BlackElo "1831"]
[Annotator "ChessBase"]
[PlyCount "71"]
[EventDate "2022.07.14"]
[EventType "team-tourn"]
[EventCountry "CZE"]
[SourceTitle "playchess.com"]
[Source "ChessBase"]
[SourceQuality "1"]
[TimeControl "5400+30"]

1. d4 {[%emt 0:00:08]} Nf6 {[%emt 0:00:13]} 2. c4 {[%emt 0:00:09]} e6 {[%emt 0:00:09]} 3. Nc3 {[%emt 0:00:27]} Bb4 {[%emt 0:00:14]} 4. Qc2 {[%emt 0:01:50]} c5 {[%emt 0:02:21]} 5. dxc5 {[%emt 0:03:34]} Nc6 {[%emt 0:01:32]} 6. Nf3 {[%emt 0:00:40]} Qa5 {[%emt 0:02:50]} 7. Bd2 {[%emt 0:01:42]} Qxc5 {[%emt 0:03:35]} 8. e3 {[%emt 0:02:05]} d5 {[%emt 0:04:42]} 9. a3 {[%emt 0:06:11]} Bxc3 {[%emt 0:03:19]} 10. Bxc3 {[%emt 0:05:51]} dxc4 {[%emt 0:03:58]} 11. Bxf6 {[%emt 0:00:42]} gxf6 {[%emt 0:00:20]} 12. b4 {[%emt 0:00:16]} Qh5 {[%emt 0:08:05]} 13. Qxc4 {[%emt 0:00:05]} O-O {[%emt 0:02:44]} 14. g4 {[%emt 0:18:07]} Qd5 {[%emt 0:05:52]} 15. Qxd5 {[%emt 0:09:26]} exd5 {[%emt 0:00:03]} 16. Rg1 {[%emt 0:00:07]} Be6 {[%emt 0:04:44]} 17. g5 {[%emt 0:01:05]} Kg7 {[%emt 0:03:34]} 18. Bd3 {[%emt 0:00:27]} Ne5 {[%emt 0:05:04]} 19. gxf6+ {[%emt 0:00:30]} Kxf6 {[%emt 0:00:01]} 20. Nxe5 {[%emt 0:00:08]} Kxe5 {[%emt 0:00:05]} 21. Rg5+ {[%emt 0:00:04]} Kf6 {[%emt 0:03:03]} 22. Rh5 {[%emt 0:00:05]} Rg8 {[%emt 0:06:42]} 23. Rh6+ {[%emt 0:00:36]} Ke7 {[%emt 0:01:33]} 24. Rc1 {[%emt 0:00:18]} Rac8 {[%emt 0:05:27]} 25. Rxc8 {[%emt 0:00:42]} Bxc8 {[%emt 0:00:08]} 26. Rxh7 {[%emt 0:01:52]} Rg1+ {[%emt 0:00:34]} 27. Kd2 {[%emt 0:00:17]} Rg2 {[%emt 0:01:03]} 28. Rh8 {[%emt 0:00:28]} Be6 {[%emt 0:05:28]} 29. Ke2 {[%emt 0:00:39]} Kd6 {[%emt 0:01:25]} 30. Kf1 {[%emt 0:00:47]} Rg5 {[%emt 0:01:46]} 31. f4 {[%emt 0:02:20]} Rg7 {[%emt 0:00:45]} 32. Kf2 {[%emt 0:00:10]} b6 {[%emt 0:02:49]} 33. h4 {[%emt 0:05:11]} Bh3 {[%emt 0:01:44]} 34. h5 {[%emt 0:00:10]} Rg2+ {[%emt 0:00:51]} 35. Kf3 {[%emt 0:00:05]} Rd2 {[%emt 0:01:02]} 36. h6 {[%emt 0:00:19]} 1-0

[Event "Czech Open-E Teams 2022"]
[Site "Pardubice"]
[Date "2022.07.14"]
[Round "1.3"]
[White "Vojtech, Ladislav"]
[Black "Vlasak, Lukas"]
[Result "0-1"]
[ECO "A05"]
[WhiteElo "2015"]
[BlackElo "2442"]
[Annotator "ChessBase"]
[PlyCount "68"]
[EventDate "2022.07.14"]
[EventType "team-tourn"]
[EventCountry "CZE"]
[SourceTitle "playchess.com"]
[Source "ChessBase"]
[SourceQuality "1"]
[TimeControl "5400+30"]

1. Nf3 Nf6 2. g3 d5 {[%emt 0:00:08]} 3. Bg2 {[%emt 0:01:13]} c6 {[%emt 0:00:24]} 4. O-O {[%emt 0:00:29]} Bf5 {[%emt 0:00:56]} 5. d3 {[%emt 0:00:30]} Nbd7 {[%emt 0:05:35]} 6. Nbd2 e6 {[%emt 0:00:00]} 7. b3 {[%emt 0:10:17]} h6 {[%emt 0:00:00]} 8. Bb2 {[%emt 0:00:32]} Bh7 {[%emt 0:00:33]} 9. Re1 {[%emt 0:06:49]} Be7 {[%emt 0:02:17]} 10. Ne5 {[%emt 0:02:14]} O-O {[%emt 0:03:19]} 11. e4 {[%emt 0:04:57]} Qa5 {[%emt 0:07:27]} 12. a3 {[%emt 0:03:18]} Rad8 {[%emt 0:04:33]} 13. Nxd7 {[%emt 0:01:59]} Rxd7 {[%emt 0:06:39]} 14. e5 {[%emt 0:01:49]} Ne8 {[%emt 0:00:45]} 15. Nf3 {[%emt 0:07:38]} c5 {[%emt 0:01:15]} 16. h4 {[%emt 0:04:10]} Nc7 {[%emt 0:01:57]} 17. Bh3 {[%emt 0:04:37]} Qb6 {[%emt 0:04:37]} 18. Qe2 {[%emt 0:04:48]} a5 {[%emt 0:03:27]} 19. Bc1 {[%emt 0:06:22]} a4 {[%emt 0:05:39]} 20. Nh2 {[%emt 0:05:56]} axb3 {[%emt 0:01:18]} 21. Rb1 {[%emt 0:02:04]} Qa6 {[%emt 0:01:46]} 22. Rxb3 {[%emt 0:01:11]} c4 {[%emt 0:01:11]} 23. dxc4 {[%emt 0:05:31]} dxc4 {[%emt 0:00:28]} 24. Rc3 {[%emt 0:04:59]} Nd5 {[%emt 0:00:44]} 25. Rxc4 {[%emt 0:00:47]} Nb6 {[%emt 0:00:15]} 26. Re4 {[%emt 0:03:20]} Bxe4 {[%emt 0:00:25]} 27. Qxe4 {[%emt 0:00:02]} Qc4 {[%emt 0:00:18]} 28. Qf3 {[%emt 0:03:38]} Qxc2 {[%emt 0:02:13]} 29. Bf1 {[%emt 0:03:10]} Rfd8 {[%emt 0:01:46]} 30. Bxh6 {[%emt 0:03:14]} gxh6 {[%emt 0:01:24]} 31. Re4 {[%emt 0:00:14]} h5 {[%emt 0:04:55]} 32. Ng4 {[%emt 0:03:37]} hxg4 {[%emt 0:01:53]} 33. Qxg4+ {[%emt 0:01:16]} Kf8 {[%emt 0:00:12]} 34. h5 {[%emt 0:02:13]} Rd1 {[%emt 0:00:56]} 0-1

[Event "Czech Open-E Teams 2022"]
[Site "Pardubice"]
[Date "2022.07.14"]
[Round "1.4"]
[White "Kraus, Tomas"]
[Black "Nedoma, Michal"]
[Result "1-0"]
[ECO "A30"]
[WhiteElo "2488"]
[BlackElo "1784"]
[Annotator "ChessBase"]
[PlyCount "43"]
[EventDate "2022.07.14"]
[EventType "team-tourn"]
[EventCountry "CZE"]
[SourceTitle "playchess.com"]
[Source "ChessBase"]
[SourceQuality "1"]
[TimeControl "5400+30"]

1. c4 {[%emt 0:00:02]} c5 {[%emt 0:00:05]} 2. Nf3 {[%emt 0:00:17]} g6 {[%emt 0:00:13]} 3. e3 {[%emt 0:01:08]} Bg7 {[%emt 0:01:55]} 4. d4 {[%emt 0:00:07]} cxd4 {[%emt 0:00:03]} 5. exd4 {[%emt 0:00:05]} d6 {[%emt 0:02:54]} 6. Nc3 {[%emt 0:01:08]} Nf6 {[%emt 0:00:23]} 7. h3 {[%emt 0:03:00]} O-O {[%emt 0:00:27]} 8. d5 {[%emt 0:01:27]} Bd7 {[%emt 0:08:10]} 9. Be2 {[%emt 0:01:14]} Na6 {[%emt 0:01:25]} 10. O-O {[%emt 0:01:29]} Rb8 {[%emt 0:00:38]} 11. Be3 {[%emt 0:01:08]} b6 {[%emt 0:04:15]} 12. Nd4 {[%emt 0:08:26]} Qc8 {[%emt 0:11:06]} 13. Rc1 {[%emt 0:01:12]} Rb7 {[%emt 0:05:15]} 14. c5 {[%emt 0:02:03]} Nxc5 {[%emt 0:02:06]} 15. b4 {[%emt 0:00:46]} Rc7 {[%emt 0:03:26]} 16. bxc5 {[%emt 0:02:22]} bxc5 {[%emt 0:00:51]} 17. Nb3 {[%emt 0:02:19]} Re8 {[%emt 0:03:21]} 18. Re1 {[%emt 0:03:07]} e6 {[%emt 0:01:40]} 19. Nb5 {[%emt 0:01:48]} Bxb5 {[%emt 0:00:41]} 20. Bxb5 {[%emt 0:00:05]} Ree7 {[%emt 0:00:11]} 21. dxe6 {[%emt 0:01:02]} Rxe6 {[%emt 0:00:46]} 22. Bc4 {[%emt 0:00:58]} 1-0

[Event "Czech Open-E Teams 2022"]
[Site "Pardubice"]
[Date "2022.07.14"]
[Round "1.5"]
[White "Polak, Tomas"]
[Black "Husarik, Branko"]
[Result "1/2-1/2"]
[ECO "A40"]
[WhiteElo "2512"]
[BlackElo "2109"]
[Annotator "ChessBase"]
[PlyCount "85"]
[EventDate "2022.07.14"]
[EventType "team-tourn"]
[EventCountry "CZE"]
[SourceTitle "playchess.com"]
[Source "ChessBase"]
[SourceQuality "1"]
[TimeControl "5400+30"]

1. d4 e5 2. dxe5 d6 {[%emt 0:01:09]} 3. Nf3 {[%emt 0:02:49]} Nc6 {[%emt 0:03:24]} 4. Bg5 {[%emt 0:00:00]} Qd7 {[%emt 0:01:36]} 5. exd6 Bxd6 {[%emt 0:00:00]} 6. e3 {[%emt 0:04:03]} f6 {[%emt 0:01:11]} 7. Bh4 Qf7 {[%emt 0:01:22]} 8. Nbd2 {[%emt 0:03:46]} Bg4 {[%emt 0:01:27]} 9. Bg3 {[%emt 0:29:04]} O-O-O {[%emt 0:00:13]} 10. Bc4 {[%emt 0:13:42]} Qh5 {[%emt 0:04:36]} 11. Bxd6 {[%emt 0:00:17]} Rxd6 {[%emt 0:00:05]} 12. Qe2 {[%emt 0:01:53]} Ne5 {[%emt 0:12:28]} 13. O-O-O {[%emt 0:01:35]} Nxc4 {[%emt 0:09:15]} 14. Nxc4 {[%emt 0:02:18]} Ra6 {[%emt 0:00:10]} 15. Kb1 {[%emt 0:04:39]} Ne7 {[%emt 0:03:37]} 16. a3 {[%emt 0:06:57]} Nc6 {[%emt 0:00:31]} 17. h3 {[%emt 0:07:59]} Be6 {[%emt 0:00:06]} 18. Ncd2 {[%emt 0:04:19]} Qf7 {[%emt 0:07:01]} 19. Ne4 {[%emt 0:02:08]} Bc4 {[%emt 0:05:07]} 20. Qe1 {[%emt 0:01:24]} Rb6 {[%emt 0:01:11]} 21. Qc3 {[%emt 0:05:35]} Re8 {[%emt 0:02:41]} 22. Ng3 {[%emt 0:00:41]} Ne7 {[%emt 0:01:41]} 23. Rd4 {[%emt 0:01:19]} Rc6 {[%emt 0:00:34]} 24. Qd2 {[%emt 0:00:19]} Qf8 {[%emt 0:06:37]} 25. Rd1 {[%emt 0:00:50]} Bg8 {[%emt 0:00:24]} 26. Rd3 {[%emt 0:03:31]} Rb6 {[%emt 0:00:31]} 27. e4 {[%emt 0:02:41]} Nc6 {[%emt 0:00:16]} 28. Qc3 {[%emt 0:00:18]} Qf7 {[%emt 0:00:51]} 29. b3 {[%emt 0:00:11]} a5 {[%emt 0:00:41]} 30. Rd7 {[%emt 0:01:35]} Qf8 {[%emt 0:00:22]} 31. Kb2 {[%emt 0:00:41]} a4 {[%emt 0:01:48]} 32. b4 {[%emt 0:00:05]} Be6 {[%emt 0:00:02]} 33. R7d3 {[%emt 0:00:41]} Na5 {[%emt 0:04:54]} 34. Nd4 {[%emt 0:00:30]} Bg8 {[%emt 0:00:17]} 35. Kc1 {[%emt 0:00:46]} Nc4 {[%emt 0:00:22]} 36. f3 g6 {[%emt 0:01:12]} 37. Nf1 {[%emt 0:01:01]} Ne5 {[%emt 0:00:28]} 38. R3d2 {[%emt 0:00:29]} Qf7 {[%emt 0:00:53]} 39. Qa1 {[%emt 0:00:34]} Nc4 {[%emt 0:02:36]} 40. Rd3 {[%emt 0:00:05]} Ne5 {[%emt 0:00:32]} 41. R3d2 {[%emt 0:00:15]} Nc4 {[%emt 0:00:06]} 42. Rd3 {[%emt 0:00:05]} Ne5 {[%emt 0:00:23]} 43. R3d2 {[%emt 0:01:38]} 1/2-1/2

[Event "Czech Open-E Teams 2022"]
[Site "Pardubice"]
[Date "2022.07.14"]
[Round "1.6"]
[White "Valtr, Tomas"]
[Black "Roubalik, Jakub"]
[Result "0-1"]
[ECO "A48"]
[WhiteElo "1883"]
[BlackElo "2380"]
[Annotator "ChessBase"]
[PlyCount "66"]
[EventDate "2022.07.14"]
[EventType "team-tourn"]
[EventCountry "CZE"]
[SourceTitle "playchess.com"]
[Source "ChessBase"]
[SourceQuality "1"]
[TimeControl "5400+30"]

1. d4 {[%emt 0:00:03]} Nf6 {[%emt 0:00:19]} 2. Nf3 {[%emt 0:00:05]} g6 {[%emt 0:00:19]} 3. e3 {[%emt 0:00:05]} Bg7 {[%emt 0:00:10]} 4. Be2 {[%emt 0:00:19]} O-O {[%emt 0:00:16]} 5. O-O {[%emt 0:01:05]} d6 {[%emt 0:00:44]} 6. b3 {[%emt 0:00:42]} Nbd7 {[%emt 0:02:41]} 7. Bb2 {[%emt 0:00:42]} Re8 {[%emt 0:01:30]} 8. c4 {[%emt 0:04:43]} e5 {[%emt 0:04:43]} 9. Nc3 {[%emt 0:07:17]} c6 {[%emt 0:05:20]} 10. dxe5 {[%emt 0:05:49]} dxe5 {[%emt 0:00:15]} 11. e4 Qc7 {[%emt 0:02:25]} 12. Qc2 {[%emt 0:05:39]} Nc5 {[%emt 0:03:59]} 13. Rad1 {[%emt 0:06:52]} Bg4 {[%emt 0:00:53]} 14. h3 {[%emt 0:06:08]} Bxf3 {[%emt 0:00:55]} 15. Bxf3 {[%emt 0:01:01]} Ne6 {[%emt 0:00:20]} 16. Ne2 {[%emt 0:09:29]} Bf8 {[%emt 0:06:29]} 17. Qc3 {[%emt 0:09:59]} Ng5 {[%emt 0:00:37]} 18. Qe3 {[%emt 0:07:14]} Ne6 {[%emt 0:04:23]} 19. Qc3 {[%emt 0:01:08]} Nc5 {[%emt 0:00:39]} 20. Qc2 {[%emt 0:05:12]} a5 {[%emt 0:00:19]} 21. Ba3 {[%emt 0:02:01]} h5 {[%emt 0:01:21]} 22. Bxc5 {[%emt 0:05:38]} Bxc5 {[%emt 0:00:39]} 23. Nc3 {[%emt 0:00:55]} Nh7 {[%emt 0:04:48]} 24. Na4 {[%emt 0:05:15]} Bd4 {[%emt 0:00:10]} 25. c5 {[%emt 0:00:51]} Ng5 {[%emt 0:00:55]} 26. Be2 {[%emt 0:07:52]} Qe7 {[%emt 0:02:48]} 27. Bc4 {[%emt 0:02:07]} Kg7 {[%emt 0:02:17]} 28. Kh1 {[%emt 0:02:16]} Rad8 {[%emt 0:00:38]} 29. Qc1 {[%emt 0:01:25]} Nxe4 {[%emt 0:00:27]} 30. f4 {[%emt 0:02:21]} Ng3+ {[%emt 0:00:20]} 31. Kh2 {[%emt 0:00:09]} Nxf1+ {[%emt 0:00:06]} 32. Rxf1 {[%emt 0:00:01]} exf4 {[%emt 0:00:13]} 33. Kh1 {[%emt 0:01:27]} Be3 {[%emt 0:00:50]} 0-1

[Event "Czech Open-E Teams 2022"]
[Site "Pardubice"]
[Date "2022.07.14"]
[Round "1.7"]
[White "Nemec, Jachym"]
[Black "Sedlak, Milan"]
[Result "1-0"]
[ECO "E91"]
[WhiteElo "2357"]
[BlackElo "1803"]
[Annotator "ChessBase"]
[PlyCount "87"]
[EventDate "2022.07.14"]
[EventType "team-tourn"]
[EventCountry "CZE"]
[SourceTitle "playchess.com"]
[Source "ChessBase"]
[SourceQuality "1"]
[TimeControl "5400+30"]

1. d4 g6 {[%emt 0:00:00]} 2. c4 {[%emt 0:00:23]} Nf6 {[%emt 0:00:10]} 3. Nc3 {[%emt 0:00:14]} Bg7 {[%emt 0:00:31]} 4. Nf3 {[%emt 0:00:42]} d6 {[%emt 0:00:26]} 5. e4 {[%emt 0:00:26]} O-O {[%emt 0:00:24]} 6. Be2 {[%emt 0:00:44]} Na6 {[%emt 0:01:02]} 7. O-O {[%emt 0:00:24]} e5 {[%emt 0:00:59]} 8. Be3 {[%emt 0:02:44]} Ng4 {[%emt 0:00:46]} 9. Bg5 Qe8 {[%emt 0:10:16]} 10. dxe5 {[%emt 0:01:05]} h6 {[%emt 0:04:49]} 11. Bc1 {[%emt 0:06:43]} dxe5 {[%emt 0:03:02]} 12. h3 {[%emt 0:01:11]} Nf6 {[%emt 0:00:07]} 13. Be3 {[%emt 0:00:24]} c6 {[%emt 0:02:18]} 14. Qc2 {[%emt 0:05:22]} Qe7 {[%emt 0:01:59]} 15. a3 Ne8 {[%emt 0:04:27]} 16. b4 {[%emt 0:06:11]} f5 {[%emt 0:02:00]} 17. c5 {[%emt 0:01:41]} Nac7 {[%emt 0:01:09]} 18. Rad1 {[%emt 0:04:04]} f4 {[%emt 0:12:10]} 19. Bc1 {[%emt 0:00:28]} Be6 {[%emt 0:00:40]} 20. Bb2 {[%emt 0:01:48]} g5 {[%emt 0:02:38]} 21. Nb1 {[%emt 0:02:06]} Bf7 {[%emt 0:01:03]} 22. Nbd2 {[%emt 0:00:23]} h5 {[%emt 0:02:07]} 23. Nc4 {[%emt 0:01:22]} Bxc4 {[%emt 0:00:14]} 24. Qxc4+ {[%emt 0:00:54]} Kh7 {[%emt 0:01:37]} 25. Nh2 {[%emt 0:00:48]} Nf6 {[%emt 0:04:22]} 26. Rd6 {[%emt 0:03:55]} Rae8 {[%emt 0:01:38]} 27. Nf3 {[%emt 0:03:09]} Ng8 {[%emt 0:04:34]} 28. Rfd1 {[%emt 0:01:26]} g4 {[%emt 0:10:09]} 29. Rd7 {[%emt 0:01:13]} Qf6 {[%emt 0:00:17]} 30. Rxc7 {[%emt 0:01:05]} gxf3 {[%emt 0:00:12]} 31. Bxf3 {[%emt 0:00:22]} Re7 {[%emt 0:01:25]} 32. Rdd7 {[%emt 0:02:02]} Qf7 {[%emt 0:06:46]} 33. Qxf7 {[%emt 0:00:33]} Rfxf7 {[%emt 0:00:03]} 34. Rxe7 {[%emt 0:00:47]} Rxe7 {[%emt 0:00:02]} 35. Rxe7 {[%emt 0:00:28]} Nxe7 {[%emt 0:00:02]} 36. Bxh5 {[%emt 0:00:13]} Kh6 {[%emt 0:00:26]} 37. Bg4 {[%emt 0:00:45]} Kg5 {[%emt 0:00:07]} 38. Kf1 {[%emt 0:00:42]} Kh4 {[%emt 0:00:35]} 39. Ke2 {[%emt 0:00:28]} Bf6 {[%emt 0:00:16]} 40. Kf3 {[%emt 0:01:31]} Bg7 {[%emt 0:00:24]} 41. Bc1 {[%emt 0:01:51]} Ng6 {[%emt 0:06:16]} 42. g3+ {[%emt 0:00:35]} Kg5 {[%emt 0:00:05]} 43. h4+ {[%emt 0:00:40]} Kf6 {[%emt 0:01:42]} 44. h5 {[%emt 0:00:34]} 1-0

[Event "Czech Open-E Teams 2022"]
[Site "Pardubice"]
[Date "2022.07.14"]
[Round "1.8"]
[White "Petrun, Milan"]
[Black "Kusa, Jakub"]
[Result "0-1"]
[ECO "B32"]
[WhiteElo "1887"]
[BlackElo "2353"]
[Annotator "ChessBase"]
[PlyCount "62"]
[EventDate "2022.07.14"]
[EventType "team-tourn"]
[EventCountry "CZE"]
[SourceTitle "playchess.com"]
[Source "ChessBase"]
[SourceQuality "1"]
[TimeControl "5400+30"]

1. e4 {[%emt 0:00:07]} c5 {[%emt 0:00:33]} 2. Nf3 {[%emt 0:00:34]} Nc6 {[%emt 0:00:06]} 3. d4 {[%emt 0:01:32]} cxd4 {[%emt 0:00:02]} 4. Nxd4 {[%emt 0:00:12]} e5 {[%emt 0:00:10]} 5. Nb5 {[%emt 0:02:37]} d6 {[%emt 0:00:47]} 6. N1c3 {[%emt 0:02:28]} a6 {[%emt 0:00:03]} 7. Na3 {[%emt 0:00:10]} b5 {[%emt 0:00:10]} 8. Nd5 {[%emt 0:00:11]} Nge7 {[%emt 0:00:12]} 9. c3 {[%emt 0:04:19]} Nxd5 {[%emt 0:02:12]} 10. Qxd5 {[%emt 0:05:34]} Bb7 {[%emt 0:00:21]} 11. Qd3 {[%emt 0:05:16]} Be7 {[%emt 0:00:55]} 12. Qg3 {[%emt 0:10:52]} O-O {[%emt 0:01:52]} 13. Bd3 {[%emt 0:02:44]} f5 {[%emt 0:07:29]} 14. exf5 {[%emt 0:28:07]} d5 {[%emt 0:01:07]} 15. f6 {[%emt 0:14:57]} Bxf6 {[%emt 0:04:44]} 16. Bf5 {[%emt 0:04:07]} Bh4 {[%emt 0:07:58]} 17. Qh3 {[%emt 0:07:25]} Bc8 {[%emt 0:14:23]} 18. Be6+ {[%emt 0:01:50]} Kh8 {[%emt 0:00:20]} 19. Be3 {[%emt 0:02:11]} d4 {[%emt 0:05:33]} 20. O-O-O {[%emt 0:01:15]} Qf6 {[%emt 0:11:50]} 21. Bxc8 {[%emt 0:00:34]} Raxc8 {[%emt 0:00:19]} 22. Bd2 {[%emt 0:01:09]} dxc3 {[%emt 0:03:14]} 23. bxc3 {[%emt 0:00:55]} b4 {[%emt 0:00:39]} 24. Nc2 {[%emt 0:00:30]} bxc3 {[%emt 0:00:29]} 25. Be3 {[%emt 0:00:54]} Qf7 {[%emt 0:13:39]} 26. Rd7 {[%emt 0:02:10]} Qxa2 {[%emt 0:05:18]} 27. Kd1 {[%emt 0:00:47]} Qb1+ {[%emt 0:00:56]} 28. Bc1 {[%emt 0:00:04]} Rcd8 {[%emt 0:04:04]} 29. Re1 {[%emt 0:00:36]} Rxd7+ {[%emt 0:01:50]} 30. Qxd7 {[%emt 0:00:03]} Nd4 {[%emt 0:06:02]} 31. Qa4 {[%emt 0:01:06]} Nxc2 {[%emt 0:01:15]} 0-1

[Event "Czech Open-E Teams 2022"]
[Site "Pardubice"]
[Date "2022.07.14"]
[Round "1.9"]
[White "Ret, Adam Josef"]
[Black "Cerveny, Martin"]
[Result "0-1"]
[ECO "E11"]
[WhiteElo "2023"]
[BlackElo "2396"]
[Annotator "ChessBase"]
[PlyCount "124"]
[EventDate "2022.07.14"]
[EventType "team-tourn"]
[EventCountry "CZE"]
[SourceTitle "playchess.com"]
[Source "ChessBase"]
[SourceQuality "1"]
[TimeControl "5400+30"]

1. d4 Nf6 2. Nf3 e6 3. c4 {[%emt 0:02:22]} Bb4+ {[%emt 0:03:04]} 4. Bd2 {[%emt 0:03:02]} a5 {[%emt 0:00:10]} 5. Nc3 {[%emt 0:02:58]} d5 {[%emt 0:04:12]} 6. e3 {[%emt 0:02:26]} O-O {[%emt 0:03:41]} 7. Bd3 {[%emt 0:02:14]} c5 {[%emt 0:04:22]} 8. a3 {[%emt 0:02:35]} Bxc3 {[%emt 0:01:33]} 9. Bxc3 {[%emt 0:01:03]} cxd4 {[%emt 0:00:43]} 10. Bxd4 {[%emt 0:03:24]} Nc6 {[%emt 0:00:38]} 11. Bc3 {[%emt 0:13:37]} dxc4 {[%emt 0:07:24]} 12. Bxc4 {[%emt 0:01:15]} Qe7 {[%emt 0:00:13]} 13. Ne5 {[%emt 0:12:06]} Rd8 {[%emt 0:15:44]} 14. Qe2 {[%emt 0:02:03]} Bd7 {[%emt 0:03:03]} 15. Nxd7 {[%emt 0:07:08]} Rxd7 {[%emt 0:00:11]} 16. Qf3 {[%emt 0:07:05]} Qc5 {[%emt 0:03:44]} 17. Be2 {[%emt 0:25:19]} Nd5 {[%emt 0:04:18]} 18. Rc1 {[%emt 0:00:56]} Nxc3 {[%emt 0:00:29]} 19. Rxc3 {[%emt 0:00:33]} Qb6 {[%emt 0:00:17]} 20. b3 {[%emt 0:01:19]} a4 {[%emt 0:00:26]} 21. e4 {[%emt 0:02:03]} Nd4 {[%emt 0:02:02]} 22. Qe3 {[%emt 0:02:33]} axb3 {[%emt 0:00:09]} 23. O-O {[%emt 0:01:06]} b2 {[%emt 0:00:40]} 24. Rb1 {[%emt 0:00:31]} Rad8 {[%emt 0:00:52]} 25. Bf1 {[%emt 0:00:39]} h6 {[%emt 0:00:34]} 26. f3 {[%emt 0:01:02]} e5 {[%emt 0:06:10]} 27. Qf2 {[%emt 0:00:05]} Qa5 {[%emt 0:00:49]} 28. Qxb2 {[%emt 0:00:29]} Ne6 {[%emt 0:00:21]} 29. Qb4 {[%emt 0:01:57]} Qa7+ {[%emt 0:01:23]} 30. Qb6 {[%emt 0:00:01]} Qxb6+ {[%emt 0:00:59]} 31. Rxb6 {[%emt 0:00:02]} Rd1 {[%emt 0:00:12]} 32. Rb2 {[%emt 0:00:40]} Ra1 {[%emt 0:01:18]} 33. Kf2 {[%emt 0:00:38]} Rdd1 {[%emt 0:01:42]} 34. Bc4 {[%emt 0:00:41]} Nf4 {[%emt 0:02:23]} 35. Kg3 {[%emt 0:01:30]} Rdc1 {[%emt 0:04:38]} 36. Rxc1 {[%emt 0:00:43]} Rxc1 37. Bd5 b6 {[%emt 0:03:16]} 38. a4 {[%emt 0:00:46]} Rg1 {[%emt 0:00:38]} 39. Bc4 {[%emt 0:01:40]} g6 {[%emt 0:01:26]} 40. h3 {[%emt 0:00:32]} Ra1 {[%emt 0:00:45]} 41. Bb5 {[%emt 0:00:37]} Kg7 {[%emt 0:00:22]} 42. Rd2 {[%emt 0:00:39]} h5 {[%emt 0:00:54]} 43. h4 {[%emt 0:00:21]} Rc1 {[%emt 0:01:20]} 44. Kf2 {[%emt 0:00:50]} Rb1 {[%emt 0:05:00]} 45. Bd7 {[%emt 0:00:15]} Rb3 {[%emt 0:00:41]} 46. Bb5 {[%emt 0:00:26]} Rb4 {[%emt 0:01:16]} 47. Bd7 {[%emt 0:00:45]} Rb3 {[%emt 0:00:34]} 48. Bb5 {[%emt 0:00:04]} Ra3 {[%emt 0:01:48]} 49. g3 {[%emt 0:01:15]} Ne6 {[%emt 0:00:35]} 50. Rb2 {[%emt 0:00:39]} Nd4 {[%emt 0:00:13]} 51. Be2 {[%emt 0:00:29]} Rxa4 {[%emt 0:00:13]} 52. Bd1 {[%emt 0:00:32]} Ra1 {[%emt 0:00:08]} 53. Be2 {[%emt 0:00:25]} Ra3 {[%emt 0:00:20]} 54. Bd1 {[%emt 0:00:31]} b5 {[%emt 0:00:16]} 55. Be2 {[%emt 0:00:09]} b4 {[%emt 0:00:23]} 56. f4 {[%emt 0:00:52]} Kf6 {[%emt 0:01:30]} 57. Bc4 {[%emt 0:00:33]} exf4 {[%emt 0:00:50]} 58. gxf4 {[%emt 0:00:29]} Rf3+ {[%emt 0:00:07]} 59. Kg2 {[%emt 0:00:07]} Rxf4 {[%emt 0:00:07]} 60. Rxb4 {[%emt 0:00:18]} Rxe4 {[%emt 0:00:43]} 61. Bd5 {[%emt 0:00:34]} Rg4+ {[%emt 0:00:27]} 62. Kh3 {[%emt 0:00:06]} Nf5 {[%emt 0:00:36]} 0-1